Cogmind - Beta 11 X7 @@@ ROGUE MODE // 2021.10.02 @ 12:34:55 Player: aperiodic Result: Destroyed by Y-45 Defender with Heavy Assault Rifle Performance ------------- Evolutions (0) 0 Regions Visited (2) 400 Robots Destroyed (22) 110 Value Destroyed (255) 255 Prototype IDs (5) 100 Alien Tech Used (0) 0 Bonus (0) 0 TOTAL SCORE: 865 Bonus ------- None Cogmind --------- Core Integrity 0/250 Matter 297/300 Energy 100/100 System Corruption 0% Temperature Cool (18) Movement Rolling (110) Ox2 Location -10/Mines Parts ------- > --- POWER (1) -------- (None) > --- PROPULSION (2) --- Wheel Wheel > --- UTILITY (2) ------ Improved Heat Sink High-capacity Storage Unit > --- WEAPON (2) ------- (None) > --- INVENTORY (20) --- Ion Engine Light Nuclear Core Light Treads Light Treads Light Treads Light Treads Huge Storage Unit High-capacity Matter Pod (200) High-capacity Matter Pod (200) Assault Rifle Assault Rifle Light Assault Rifle Light Assault Rifle Grenade Launcher Grenade Launcher Grenade Launcher Grenade Launcher Mining Laser Peak State ------------ > --- POWER ------------ Ion Engine > --- PROPULSION ------- Wheel Wheel > --- UTILITY ---------- Improved Heat Sink High-capacity Storage Unit > --- WEAPON ----------- Assault Rifle Assault Rifle > --- INVENTORY -------- Ion Engine Light Nuclear Core Light Treads Light Treads Light Treads Light Treads Huge Storage Unit High-capacity Matter Pod High-capacity Matter Pod Assault Rifle Assault Rifle Light Assault Rifle Light Assault Rifle Grenade Launcher Grenade Launcher Grenade Launcher Grenade Launcher Mining Laser [Rating: 11] Favorites ----------- Power Ion Engine Engine Ion Engine Propulsion Wheel Treads Light Treads Wheel Wheel Utility Large Storage Unit Device Improved Heat Sink Storage Large Storage Unit Weapon Assault Rifle Ballistic Gun Assault Rifle Launcher Grenade Launcher Special Weapon Mining Laser Build | -11 -10 -10 ------- Run | Scr Mat Min Slots Evolved . | . . . Power . | . . . Propulsion . | . . . Utility . | . . . Weapon . | . . . Parts Attached 28 | 7 18 3 Power 2 | 1 1 . Engine 2 | 1 1 . Core . | . . . Reactor . | . . . Propulsion 9 | 3 6 . Treads 2 | . 2 . Leg . | . . . Wheel 7 | 3 4 . Hover . | . . . Flight . | . . . Utility 5 | 1 3 1 Device 1 | . . 1 Storage 4 | 1 3 . Processor . | . . . Hackware . | . . . Protection . | . . . Artifact . | . . . Weapon 12 | 2 8 2 Energy Gun . | . . . Energy Cannon . | . . . Ballistic Gun 7 | 2 4 1 Ballistic Cannon . | . . . Launcher 1 | . . 1 Special Weapon 4 | . 4 . Impact Weapon . | . . . Slashing Weapon . | . . . Piercing Weapon . | . . . Special Melee Weapon . | . . . Unidentified Prototypes . | . . . Parts Lost 3 | . . 3 Power 1 | . . 1 Propulsion . | . . . Utility . | . . . Weapon 2 | . . 2 Highest Loss Streak 3 | . . 3 Average Slot Usage (%) 86 | . 85 94 Engine 13 | . 14 13 Wheel 27 | . 27 28 Device 1 | . . 9 Storage 14 | . 14 14 Ballistic Gun 25 | . 25 26 Special Weapon 2 | . 2 . Naked Turns . | . . . Heaviest Build 50 | 10 49 50 Greatest Support 32 | 32 26 20 Greatest Overweight (x) 2 | . 2 2 Average Overweight (x) 1 | . 1 2 Largest Inventory Capacity 25 | 8 25 20 Average Capacity 15 | 7 15 20 Most Carried 18 | 6 17 18 Average Carried 11 | 3 10 16 Final Capacity 20 | 8 20 20 Final Carried 18 | 6 15 18 Class Distribution -------------------- 100% | Mutant Dominant Class ---------------- Mutant | -10/Materials Mutant | -10/Mines Resources | -11 -10 -10 ----------- Run | Scr Mat Min Matter Collected 731 | 296 310 125 Remotely . | . . . Salvage Created 508 | 119 312 77 Parts 43 | 5 32 6 Haulers Intercepted 2 | . 2 . Recyclers Shooed 1 | 1 . . Parts Field Recycled . | . . . Retrieved Matter . | . . . Parts Self-Destructed . | . . . Prevented . | . . . Kills | -11 -10 -10 ------- Run | Scr Mat Min Combat Hostiles Destroyed 12 | . 9 3 Guns 12 | . 9 3 Classes Destroyed 7 | 2 4 1 Worker 2 | . 2 . Tunneler 2 | 2 . . Hauler 2 | . 2 . Recycler 1 | 1 . . Watcher 3 | . 3 . Swarmer 10 | . 9 1 Grunt 2 | . . 2 Best Kill Streak 4 | 3 4 1 Combat Bots Only 3 | . 3 1 Max Kills in Single Turn 1 | 1 1 1 Gunslinging . | . . . Exploded . | . . . Melee . | . . . Uniques/NPCs Destroyed . | . . . Combat | -11 -10 -10 -------- Run | Scr Mat Min Damage Taken 836 | . 228 608 Core 254 | . 39 215 Absorbed by Shields . | . . . Core Remaining (%) 100 | 100 . . Volleys Fired 98 | 13 74 11 Largest 2 | 2 2 2 Hottest 100 | 40 100 40 Shots Fired 176 | 26 132 18 Gun 158 | 26 116 16 Cannon . | . . . Launcher 2 | . . 2 Special 16 | . 16 . Kinetic 158 | 26 116 16 Thermal 16 | . 16 . Explosive 2 | . . 2 Electromagnetic . | . . . Robot Hit Streak 8 | 3 8 4 Robot Miss Streak 5 | 2 5 3 Penetration Max . | . . . Secondary Targets 1 | . 1 . Max Gunslinging Chain 1 | . 1 . Shots Hit Robots 93 | 16 68 9 Core Hits 38 | 7 23 8 Critical Kills . | . . . Critical Parts Destroyed 2 | 1 1 . Critical Strikes 2 | 1 1 . Destroy 2 | 1 1 . Melee Attacks . | . . . Impact . | . . . Slashing . | . . . Piercing . | . . . Sneak Attacks . | . . . Combat Hostiles . | . . . Follow-up Attacks . | . . . Damage Inflicted 937 | 130 651 156 Guns 859 | 130 625 104 Cannons . | . . . Explosions 52 | . . 52 Melee . | . . . Ramming 2 | . 2 . Kinetic 859 | 130 625 104 Thermal 24 | . 24 . Explosive 52 | . . 52 Electromagnetic . | . . . Impact . | . . . Slashing . | . . . Piercing . | . . . Highest Corruption . | . . . Average Corruption . | . . . Corruption Purged . | . . . Overload Shots . | . . . Overflow Damage . | . . . Projectiles . | . . . Explosions . | . . . Melee . | . . . Knockbacks . | . . . Impact . | . . . Kinetic . | . . . Secondary . | . . . Self-Inflicted Damage 24 | . . 24 Shots 1 | . . 1 Rammed 1 | . 1 . Targets Rammed 1 | . 1 . Kicked . | . . . Crushed . | . . . Highest Temperature 140 | . 140 2 Average Temperature 41 | . 44 1 Received Heat Transfer 108 | . . 108 Siege Activations . | . . . Robots Corrupted . | . . . Combat Hostiles . | . . . Parts Fried . | . . . Impact Corruptions . | . . . Robots Melted . | . . . Combat Hostiles . | . . . Parts Melted . | . . . Heat Transferred 50 | . 50 . Parts Sabotaged . | . . . Parts Stolen . | . . . Parts Stripped . | . . . Power Chain Reactions . | . . . Missiles Intercepted . | . . . Alert | -11 -10 -10 ------- Run | Scr Mat Min Peak Influence 243 | 15 243 82 Initial 17 | . 9 17 Average 48 | 4 52 47 Maximum Alert Level 1 | . 1 . Low Security (%) 95 | 100 94 100 Level 1 4 | . 5 . Level 2 . | . . . Level 3 . | . . . Level 4 . | . . . Level 5 . | . . . High Security . | . . . Max Security . | . . . Squads Dispatched 1 | . 1 . Investigation 1 | . 1 . Extermination . | . . . Reinforcement . | . . . Assault . | . . . Garrison . | . . . Intercept . | . . . Construction Impeded . | . . . Haulers Reinforced . | . . . Active Scanning Responses . | . . . Cargo Convoy Interrupts . | . . . Stealth | -11 -10 -10 --------- Run | Scr Mat Min Distress Signals 1 | . 1 . Communications Jammed . | . . . Distress Signals . | . . . Times Spotted 26 | . 17 9 Peak Tracking Total 4 | . 4 4 Tactical Retreats . | . . . Traps | -11 -10 -10 ------- Run | Scr Mat Min Traps Triggered . | . . . Indirectly . | . . . Trap Hack Attempts . | . . . Triggered . | . . . Disarmed . | . . . Reprogrammed . | . . . Reused . | . . . Traps Extracted . | . . . Installed . | . . . Triggered . | . . . Machines | -11 -10 -10 ---------- Run | Scr Mat Min Machines Disabled . | . . . Max in Single Turn . | . . . Machines Sabotaged . | . . . Garrisons Compromised . | . . . Overloaded Fab Kills . | . . . Fab Network Shutdowns . | . . . Hacking | -11 -10 -10 --------- Run | Scr Mat Min Machines Accessed 9 | . 9 . Terminals 8 | . 8 . Fabricators . | . . . Repair Stations . | . . . Recycling Units 1 | . 1 . Scanalyzers . | . . . Garrison Access . | . . . Total Hacks 23 | . 23 . Successful 17 | . 17 . Failed 5 | . 5 . Catastrophic . | . . . Database Lockouts 1 | . 1 . Manual 19 | . 19 . Terminals 22 | . 22 . Fabricators . | . . . Repair Stations . | . . . Recycling Units 1 | . 1 . Scanalyzers . | . . . Garrison Access . | . . . Terminal Hacks 7 | . 7 . Robot Analysis 1 | . 1 . Prototype ID Bank 4 | . 4 . Terminal Index 1 | . 1 . Locate Traps 1 | . 1 . Fabricator Hacks . | . . . Repair Station Hacks . | . . . Recycling Unit Hacks . | . . . Scanalyzer . | . . . Garrison Access Hacks . | . . . Unauthorized Hacks 10 | . 10 . Terminals 9 | . 9 . Track 3 | . 3 . Assimilate 3 | . 3 . Botnet 2 | . 2 . Operators 1 | . 1 . Fabricators . | . . . Repair Stations . | . . . Recycling Units 1 | . 1 . Tunnel 1 | . 1 . Scanalyzers . | . . . Garrison Access . | . . . Data Cores Recovered . | . . . Used . | . . . Hacking Detections 5 | . 5 . Full Trace Events . | . . . Feedback Events . | . . . Feedback Blocked . | . . . Robot Schematics Acquired . | . . . Robots Built . | . . . Matter . | . . . Time . | . . . Total Robot Build Rating . | . . . Part Schematics Acquired . | . . . Parts Built . | . . . Matter . | . . . Time . | . . . Total Part Build Rating . | . . . Parts Repaired . | . . . Time . | . . . Parts Recycled . | . . . Recycled Matter . | . . . Retrieved Matter . | . . . Retrieved Components . | . . . Parts Scanalyzed . | . . . Part Schematics Acquired . | . . . Parts Damaged . | . . . Bothacking | -11 -10 -10 ------------ Run | Scr Mat Min Used RIF Installer . | . . . Robots Hacked . | . . . Non-combat . | . . . Combat . | . . . Robot Hacks Applied . | . . . Relay Couplers Released . | . . . Robots Rewired . | . . . Allies Hacked . | . . . Hacks Repelled . | . . . Allies | -11 -10 -10 -------- Run | Scr Mat Min Total Allies 2 | . 2 . Largest Group 1 | . 1 1 Highest-Rated Group 10 | . 10 10 Highest-Rated Ally 10 | . 10 10 Total Orders . | . . . Ally Attacks . | . . . Total Damage . | . . . Kills . | . . . Allies Corrupted . | . . . Allies Melted . | . . . Intel | -11 -10 -10 ------- Run | Scr Mat Min Robot Analysis Total 1 | . 1 . Derelict Logs Recovered 2 | . . 2 Drone Launches . | . . . Drone Recoveries . | . . . Exploration | -11 -10 -10 ------------- Run | Scr Mat Min Turns Passed 1755 | 114 1405 236 Spaces Moved 1249 | 69 999 181 Core 4 | 4 . . Treads 2 | . 2 . Legs . | . . . Wheels 1243 | 65 997 181 Hover . | . . . Flight . | . . . Fastest Speed 50 | 50 90 110 Average Speed 104 | 93 104 110 Slowest Speed 260 | 100 260 110 Overloaded Moves . | . . . Propulsion Burnouts . | . . . Robots Hopped . | . . . Cave-ins Triggered . | . . . Exploration Rate (%) 48 | 5 97 44 Regions Visited 2 Branch Regions 1 Pre-discovered Areas 1 | . 1 . Known Exits Taken . | . . . Unknown Exits Taken 2 | 1 1 . Scrap Searched 1 | . . 1 Spaces Dug 12 | . 12 . Terrain Destroyed 31 | . 15 16 Melee . | . . . Projectile 15 | . 15 . AOE 16 | . . 16 Terrain Rammed . | . . . Walls Destroyed . | . . . Machines Disabled . | . . . Actions | -11 -10 -10 --------- Run | Scr Mat Min Total 1503 | 93 1211 199 Wait 100 | . 100 . Move 1247 | 68 998 181 Hop . | . . . Pick Up 20 | 5 11 4 Fast Attach 9 | 6 3 . Attach 1 | . . 1 Detach 1 | . 1 . Swap 18 | 1 15 2 Drop 8 | . 8 . Fire 98 | 13 74 11 Melee . | . . . Ram . | . . . Kick . | . . . Crush 1 | . 1 . Escape Stasis . | . . . Rewire . | . . . Trap . | . . . Miscellaneous . | . . . Route ------- -11/Scrapyard -10/Materials (discovered 4 exits: [*Mat x3] / [*Min]) -10/Mines (discovered 1 exit: [*Mat]) History --------- Turn | Location | Event 24 | -11/Scrapyard | Discovered new exit (range 16) 115 | -11/Scrapyard | Entered Materials 178 | -10/Materials | Central database locked down 185 | -10/Materials | Discovered new exit (range 13) 300 | -10/Materials | Build established: Mutant 633 | -10/Materials | Discovered new exit (range 16) 854 | -10/Materials | Discovered new exit (range 15) 1128 | -10/Materials | Discovered new exit (range 16) 1520 | -10/Materials | Entered Mines 1520 | -10/Mines | Accompanied by 1 ally 1590 | -10/Mines | Learned Materials garrison access intel 1617 | -10/Mines | Discovered new exit (range 9) 1716 | -10/Mines | Assembled infested the area 1727 | -10/Mines | Learned Materials interactive machine intel 1751 | -10/Mines | Core integrity fell below 50% 1755 | -10/Mines | Core integrity fell below 20% 1756 | -10/Mines | Destroyed by Y-45 Defender with Heavy Assault Rifle Last Messages --------------- 01605_ U-05 Engineer builds a Wall. 01615_ Acquired 17 matter. 01617_ EXIT=FOUND 01632_ Extracted 44 matter. 01636_ Searching scrap... 01636_ Found ECM Suite. 01636_ Found 27 Matter. 01636_ Found Beam Cannon. 01636_ Found Sml. Matter Pod. 01636_ Found 25 Matter. 01640_ Acquired Hcp. Matter Pod. 01716_ ALERT: Infestation in the mines, dispatching Demolisher response squad. 01727_ Acquired derelict log, extracted data. Data stored: Materials interactive machine intel. 01741_ S-10 Pest destroyed. 01748_ C-30 ARC bursts open, deploying its payload. 01748_ D-53 Grenadier unfolds itself. 01748_ Ion Engine destroyed. 01750_ Assault Rifle destroyed. Map ----- +----------------------------------------------------+ | ?????????????????????????????????????????????????? | | ?????????????????????????????????????????????????? | | ?????????????????????????????????????????????????? | | ?????????????????????????????????????????????????# | | ?????????????????????????????????????????????????# | | ?????????????????????????????????????????????????# | | ?????????????????????????????????????????????????# | | ?????????????????????????????????????????????????? | | ?????????????????????????????????????????????????? | | ?????????????????????????????????????????????????? | | ?????????????????????????????????????????????????? | | ?????????????????????????????????????????????????? | | ?????????????????????????????????????????????????? | | ?????????????????????????????????????????????????? | | ???????????????????????????????????????????????### | | ??????????????????????????????????????????????## | | ?????????????????????????????????????????###### | | ???????????????????#?????????????????????# | | ???????????????????# ??####??????????????# | | ???????????????????# ?## ###????????????# ####### | | ???????????????????# ?? $##???????????????????# | | ??????????????????## ## #???????????????????? | | ??????????????????? ? ####????????????????? | | ????????????????????# ## ?????????????????? | | ????????????????????# # #???????????????????? | | ????????????????????# @ #???????????????????? | | ???????????????????## #???????????????????? | | ???????????????????# #???????????????????? | | ???????????######### ###?###??????????????? | | ??????# =%[ ## ##?????????????? | | ???????????####### # #???????????? | | ?????????????????## ?????????? | | ??????????????????# ?????????? | | ??????????????????# ####??????????? | | ??????????????????#/! ########?????????????? | | ?????????????????#"Y[ d##????????????????????? | | ?????????????????# Y + d #?????????????????????? | | ?????????????????# + %##????????????????????? | | ?????????????????#"[] # #????????????????????? | | ?????????????????##[!## #????????????????????? | | ??????????????????##### ##???????????????????? | | ???????????????????## #???????????????????# | | ???????????????????# #???????????????????# | | ???????????????????# #???????????????????# | | ???????????????????# ##???????????????????# | | ???????????????????# ## #?????????# ########## | | ???????????????????## ## #?????????# = = | | ????????????????????### ## #?????????######### # | | ??????????????????????# ## #?????????????????# ## | | ??????????????????????# #?????????????????# ## | +----------------------------------------------------+ Best States ------------- Heat Dissipation 39 Energy Generation 10 Energy Capacity 250 Matter Stores 300 Matter Capacity 300 Sight Range 16 Terrain Scan Density 10 Evasion (%) 42 Recoil Reduction 1 Item Schematics ----------------- None Robot Schematics ------------------ None Fabricated ------------ Nothing Alien Tech Used ----------------- None Achievements -------------- None Challenges ------------ None Game ------ Seed UltimateTrapLauncher Manual? 0 Play Time 00:18:27 Cumulative 427.2 hours Start 2021.10.02 @ 12:18:41 End 2021.10.02 @ 12:34:55 Sessions 1 Manual Loads 0 Difficulty Rogue Special Mode None Game No. 144 Rogue 140 Adventurer 4 Explorer 0 Win Type - Total 10 Types 5/1/3/0/0/0/0/1/0 Lore% 81 Gallery% 80 Achievement% 68 Wizard Run 0 Options --------- ASCII 1 Keyboard 0 Movement Arrows Keybinds 0 Fullscreen 1 Font 18/Smallcaps Map View 76x50 Tactical HUD 1 Map Filters NONE Filters NONE Steam 1 RUN: 6208b948-c289-477b-848a-a5a8180d8e61